[Event "Chigorin Memorial 2019"]
[Site "Saint Petersburg"]
[Date "2019.10.10"]
[Round "6.8"]
[White "Kryakvin, Dmitry"]
[Black "Kardashevskiy, Evgeny"]
[Result "1-0"]
[ECO "A13"]
[WhiteElo "2608"]
[BlackElo "2428"]
[Annotator "ChessBase"]
[PlyCount "163"]
[EventDate "2019.10.05"]
[EventType "swiss"]
[EventCountry "RUS"]
[SourceTitle "playchess.com"]
[Source "ChessBase"]
[SourceQuality "1"]
[TimeControl "5400+30"]

1. Nf3 {[%emt 0:00:00]} Nf6 {[%emt 0:00:00]} 2. g3 {[%emt 0:00:00]} e6 {[%emt 0:00:19]} 3. Bg2 {[%emt 0:00:00]} d5 {[%emt 0:00:35]} 4. O-O {[%emt 0:00:06]} c5 {[%emt 0:00:29]} 5. c4 {[%emt 0:00:28]} d4 {[%emt 0:00:24]} 6. e3 {[%emt 0:00:19]} Nc6 {[%emt 0:00:31]} 7. exd4 {[%emt 0:00:10]} cxd4 {[%emt 0:00:13]} 8. d3 {[%emt 0:00:08]} h6 {[%emt 0:00:17]} 9. Bd2 {[%emt 0:00:14]} a5 {[%emt 0:11:01]} 10. Bf4 {[%emt 0:00:39]} Bd6 {[%emt 0:02:03]} 11. Bxd6 {[%emt 0:00:09]} Qxd6 {[%emt 0:00:05]} 12. Na3 {[%emt 0:00:07]} O-O {[%emt 0:04:11]} 13. Nb5 {[%emt 0:00:24]} Qd8 {[%emt 0:06:28]} 14. Re1 {[%emt 0:04:44]} Qb6 {[%emt 0:10:36]} 15. a3 {[%emt 0:09:33]} Rd8 {[%emt 0:02:08]} 16. Qd2 {[%emt 0:05:29]} Bd7 {[%emt 0:08:31]} 17. b4 {[%emt 0:07:39]} Be8 {[%emt 0:03:43]} 18. Qb2 {[%emt 0:01:53]} axb4 {[%emt 0:07:42]} 19. axb4 {[%emt 0:00:56]} Ra6 {[%emt 0:01:07]} 20. Ra3 {[%emt 0:08:31]} Kf8 {[%emt 0:08:54]} 21. h3 {[%emt 0:00:46]} Kg8 {[%emt 0:00:27]} 22. Rb3 {[%emt 0:08:41]} Ra4 {[%emt 0:07:43]} 23. Ra1 {[%emt 0:02:16]} Rxa1+ {[%emt 0:00:32]} 24. Qxa1 {[%emt 0:00:06]} e5 {[%emt 0:01:17]} 25. Qa4 {[%emt 0:04:40]} e4 {[%emt 0:02:15]} 26. dxe4 {[%emt 0:01:00]} Nxe4 {[%emt 0:04:16]} 27. c5 {[%emt 0:02:29]} Qa6 {[%emt 0:00:26]} 28. Qxa6 {[%emt 0:00:40]} bxa6 {[%emt 0:00:03]} 29. Nc7 {[%emt 0:00:16]} a5 {[%emt 0:03:04]} 30. Nxe8 {[%emt 0:13:23]} Rxe8 {[%emt 0:00:29]} 31. bxa5 {[%emt 0:00:54]} Nxa5 {[%emt 0:01:23]} 32. Rb5 {[%emt 0:00:43]} Nc6 {[%emt 0:00:49]} 33. Rb6 {[%emt 0:00:20]} Re6 {[%emt 0:00:44]} 34. Nh2 {[%emt 0:13:26]} d3 {[%emt 0:03:08]} 35. Nf1 {[%emt 0:00:05]} f5 {[%emt 0:02:16]} 36. Rb3 {[%emt 0:02:58]} Ne5 {[%emt 0:04:21]} 37. Ne3 {[%emt 0:06:22]} d2 {[%emt 0:00:33]} 38. Rb8+ {[%emt 0:03:57]} Kf7 {[%emt 0:00:39]} 39. Rb7+ {[%emt 0:01:13]} Kf8 {[%emt 0:00:30]} 40. Rb8+ {[%emt 0:00:46]} Re8 {[%emt 0:00:19]} 41. Rxe8+ {[%emt 0:01:03]} Kxe8 {[%emt 0:00:04]} 42. Bxe4 {[%emt 0:00:11]} fxe4 {[%emt 0:00:15]} 43. Kf1 {[%emt 0:00:04]} Nc4 {[%emt 0:03:39]} 44. Nd1 {[%emt 0:00:45]} Kd7 {[%emt 0:00:25]} 45. Ke2 {[%emt 0:00:05]} Kc6 {[%emt 0:01:35]} 46. Nc3 {[%emt 0:00:05]} e3 {[%emt 0:01:06]} 47. fxe3 {[%emt 0:00:07]} Kxc5 {[%emt 0:00:09]} 48. Ne4+ {[%emt 0:00:08]} Kd5 {[%emt 0:00:18]} 49. Nxd2 {[%emt 0:00:05]} Ne5 {[%emt 0:00:33]} 50. g4 {[%emt 0:00:56]} g6 {[%emt 0:00:52]} 51. Nf1 {[%emt 0:00:36]} Nf7 {[%emt 0:00:25]} 52. Ng3 {[%emt 0:00:49]} Ke5 {[%emt 0:00:30]} 53. h4 {[%emt 0:02:32]} Nd6 {[%emt 0:00:33]} 54. Kf3 {[%emt 0:00:18]} Nc4 {[%emt 0:00:40]} 55. Ne4 {[%emt 0:00:37]} Nb6 {[%emt 0:00:13]} 56. Nf2 {[%emt 0:00:05]} Nc4 {[%emt 0:00:35]} 57. Nd3+ {[%emt 0:00:07]} Kf6 {[%emt 0:00:29]} 58. Kf4 {[%emt 0:00:46]} g5+ {[%emt 0:00:31]} 59. hxg5+ {[%emt 0:00:03]} hxg5+ {[%emt 0:00:03]} 60. Ke4 {[%emt 0:00:05]} Ke6 {[%emt 0:00:35]} 61. Kd4 {[%emt 0:00:14]} Nb6 {[%emt 0:01:45]} 62. Nc5+ {[%emt 0:00:17]} Kf6 {[%emt 0:00:29]} 63. e4 {[%emt 0:00:20]} Kg6 {[%emt 0:00:37]} 64. e5 {[%emt 0:00:21]} Nc8 {[%emt 0:00:27]} 65. Kd5 {[%emt 0:01:25]} Ne7+ {[%emt 0:00:02]} 66. Kd6 {[%emt 0:00:59]} Ng8 {[%emt 0:00:02]} 67. Ne4 {[%emt 0:01:19]} Nh6 {[%emt 0:00:31]} 68. Nf2 {[%emt 0:00:19]} Nf7+ {[%emt 0:01:11]} 69. Kd5 {[%emt 0:00:53]} Nh6 {[%emt 0:00:31]} 70. Kd6 {[%emt 0:00:56]} Nf7+ {[%emt 0:00:04]} 71. Ke6 {[%emt 0:00:04]} Nh6 {[%emt 0:01:16]} 72. Kd7 {[%emt 0:00:43]} Nf7 {[%emt 0:00:19]} 73. e6 {[%emt 0:00:50]} Ne5+ {[%emt 0:00:03]} 74. Ke7 {[%emt 0:00:39]} Kg7 {[%emt 0:00:12]} 75. Kd6 {[%emt 0:00:42]} Nc4+ {[%emt 0:00:09]} 76. Kd5 {[%emt 0:00:36]} Ne3+ {[%emt 0:00:34]} 77. Ke4 {[%emt 0:00:55]} Nc2 {[%emt 0:00:43]} 78. Kf5 {[%emt 0:00:04]} Nd4+ {[%emt 0:00:05]} 79. Ke5 {[%emt 0:00:03]} Nf3+ {[%emt 0:00:57]} 80. Kd6 {[%emt 0:00:17]} Kf8 {[%emt 0:00:59]} 81. Ne4 {[%emt 0:00:12]} Nd4 {[%emt 0:00:26]} 82. Kd7 {[%emt 0:00:17]} 1-0

[Event "Chigorin Memorial 2019"]
[Site "Saint Petersburg"]
[Date "2019.10.10"]
[Round "6.9"]
[White "Yanchenko, Roman"]
[Black "Rozum, Ivan"]
[Result "1/2-1/2"]
[ECO "A40"]
[WhiteElo "2454"]
[BlackElo "2599"]
[Annotator "ChessBase"]
[PlyCount "104"]
[EventDate "2019.10.05"]
[EventType "swiss"]
[EventCountry "RUS"]
[SourceTitle "playchess.com"]
[Source "ChessBase"]
[SourceQuality "1"]
[TimeControl "5400+30"]

1. d4 {[%emt 0:00:00]} g6 {[%emt 0:02:36]} 2. Bf4 {[%emt 0:08:34]} Bg7 {[%emt 0:00:54]} 3. Nf3 {[%emt 0:00:04]} c5 {[%emt 0:01:16]} 4. c3 {[%emt 0:00:08]} Qb6 {[%emt 0:03:36]} 5. Qb3 {[%emt 0:06:29]} d6 {[%emt 0:02:27]} 6. e3 {[%emt 0:01:11]} Nf6 {[%emt 0:02:54]} 7. Nbd2 {[%emt 0:06:13]} O-O {[%emt 0:00:31]} 8. Be2 {[%emt 0:01:44]} Qc7 {[%emt 0:03:04]} 9. h3 {[%emt 0:01:11]} b6 {[%emt 0:04:01]} 10. O-O {[%emt 0:01:57]} Bb7 {[%emt 0:03:42]} 11. a4 {[%emt 0:00:07]} a6 {[%emt 0:00:37]} 12. Qa3 {[%emt 0:16:33]} Nbd7 {[%emt 0:03:22]} 13. Bh2 {[%emt 0:01:48]} b5 {[%emt 0:17:19]} 14. Rfc1 {[%emt 0:03:03]} Rfb8 {[%emt 0:05:19]} 15. axb5 {[%emt 0:03:17]} axb5 {[%emt 0:00:21]} 16. Qb3 {[%emt 0:00:01]} Bd5 {[%emt 0:02:35]} 17. Qd1 {[%emt 0:00:03]} Qb7 {[%emt 0:01:46]} 18. Ne1 {[%emt 0:02:23]} Ne4 {[%emt 0:04:10]} 19. Nxe4 {[%emt 0:01:09]} Bxe4 {[%emt 0:00:02]} 20. Rxa8 {[%emt 0:01:07]} Rxa8 {[%emt 0:00:17]} 21. Ra1 {[%emt 0:00:04]} c4 {[%emt 0:03:07]} 22. f3 {[%emt 0:02:29]} Bc6 {[%emt 0:01:56]} 23. Nc2 {[%emt 0:00:44]} Nb6 {[%emt 0:03:34]} 24. Nb4 {[%emt 0:01:26]} Nd5 {[%emt 0:00:50]} 25. Nxd5 {[%emt 0:05:24]} Bxd5 {[%emt 0:01:01]} 26. e4 {[%emt 0:00:03]} Bc6 {[%emt 0:00:24]} 27. Bf4 {[%emt 0:00:14]} d5 {[%emt 0:04:26]} 28. e5 {[%emt 0:00:19]} Ra7 {[%emt 0:01:48]} 29. Kf1 {[%emt 0:03:01]} Qa8 {[%emt 0:00:10]} 30. Rxa7 {[%emt 0:00:04]} Qxa7 {[%emt 0:00:03]} 31. b4 {[%emt 0:00:15]} f6 {[%emt 0:03:52]} 32. exf6 {[%emt 0:00:29]} exf6 {[%emt 0:02:32]} 33. h4 {[%emt 0:00:53]} Kf7 {[%emt 0:00:14]} 34. Qd2 {[%emt 0:00:15]} Bf8 {[%emt 0:01:50]} 35. g4 {[%emt 0:00:20]} Bd7 {[%emt 0:00:34]} 36. Bg3 {[%emt 0:00:43]} Be6 {[%emt 0:05:51]} 37. Kf2 {[%emt 0:01:14]} Qa1 {[%emt 0:00:48]} 38. g5 {[%emt 0:01:43]} Be7 {[%emt 0:00:42]} 39. Kg2 {[%emt 0:00:55]} Bf5 {[%emt 0:02:52]} 40. gxf6 {[%emt 0:01:35]} Bxf6 {[%emt 0:00:05]} 41. Be5 {[%emt 0:00:44]} h5 {[%emt 0:08:03]} 42. Bxf6 {[%emt 0:01:03]} Kxf6 {[%emt 0:00:01]} 43. Qe3 {[%emt 0:00:45]} Qe1 {[%emt 0:00:52]} 44. Qe5+ {[%emt 0:00:18]} Kf7 {[%emt 0:00:04]} 45. Qxd5+ {[%emt 0:00:18]} Be6 {[%emt 0:00:20]} 46. Qb7+ {[%emt 0:02:59]} Kf6 {[%emt 0:00:12]} 47. Qe4 {[%emt 0:00:05]} Qxc3 {[%emt 0:01:36]} 48. Qf4+ {[%emt 0:00:04]} Kg7 {[%emt 0:01:36]} 49. Qc7+ {[%emt 0:00:54]} Bf7 {[%emt 0:00:27]} 50. Qe5+ {[%emt 0:00:07]} Kg8 {[%emt 0:00:11]} 51. Qb8+ {[%emt 0:02:33]} Kg7 {[%emt 0:00:05]} 52. Qe5+ {[%emt 0:02:40]} Kg8 {[%emt 0:00:27]} 1/2-1/2

[Event "Chigorin Memorial 2019"]
[Site "Saint Petersburg"]
[Date "2019.10.10"]
[Round "6.10"]
[White "Smirin, Ilia"]
[Black "Polschikov, Alexey"]
[Result "1-0"]
[ECO "B90"]
[WhiteElo "2599"]
[BlackElo "2416"]
[Annotator "ChessBase"]
[PlyCount "81"]
[EventDate "2019.10.05"]
[EventType "swiss"]
[EventCountry "RUS"]
[SourceTitle "playchess.com"]
[Source "ChessBase"]
[SourceQuality "1"]
[TimeControl "5400+30"]

1. e4 {[%emt 0:02:05]} c5 {[%emt 0:00:00]} 2. Nf3 {[%emt 0:01:43]} d6 {[%emt 0:00:00]} 3. d4 {[%emt 0:00:04]} cxd4 {[%emt 0:00:00]} 4. Nxd4 {[%emt 0:00:02]} Nf6 {[%emt 0:00:00]} 5. Nc3 {[%emt 0:00:04]} a6 {[%emt 0:00:07]} 6. Be3 {[%emt 0:00:41]} e5 {[%emt 0:00:29]} 7. Nf3 {[%emt 0:00:16]} Be7 {[%emt 0:03:36]} 8. Bc4 {[%emt 0:00:35]} O-O {[%emt 0:00:08]} 9. O-O {[%emt 0:00:51]} Nc6 {[%emt 0:06:30]} 10. Re1 {[%emt 0:05:33]} h6 {[%emt 0:03:28]} 11. h3 {[%emt 0:04:22]} Be6 {[%emt 0:00:27]} 12. Nd5 {[%emt 0:01:29]} Rc8 {[%emt 0:06:40]} 13. Bf1 {[%emt 0:03:52]} Nb8 {[%emt 0:16:16]} 14. c4 {[%emt 0:01:32]} Nbd7 {[%emt 0:01:53]} 15. Nd2 {[%emt 0:02:07]} Nc5 {[%emt 0:05:51]} 16. b4 {[%emt 0:03:28]} Ncd7 {[%emt 0:04:10]} 17. a3 {[%emt 0:14:01]} Nh7 {[%emt 0:03:32]} 18. Nb3 {[%emt 0:03:50]} Bg5 {[%emt 0:01:09]} 19. Na5 {[%emt 0:00:23]} Bxe3 {[%emt 0:03:23]} 20. Nxb7 {[%emt 0:04:29]} Bxf2+ {[%emt 0:01:05]} 21. Kxf2 {[%emt 0:00:13]} Qg5 {[%emt 0:00:51]} 22. Nxd6 {[%emt 0:03:42]} Rb8 {[%emt 0:01:00]} 23. Qc1 {[%emt 0:02:34]} Qh4+ {[%emt 0:00:29]} 24. Kg1 {[%emt 0:00:57]} g6 {[%emt 0:03:02]} 25. c5 {[%emt 0:04:39]} Bxd5 {[%emt 0:03:55]} 26. exd5 {[%emt 0:00:23]} Ng5 {[%emt 0:00:27]} 27. c6 {[%emt 0:05:20]} Nf6 {[%emt 0:01:45]} 28. c7 {[%emt 0:07:24]} Qg3 {[%emt 0:00:42]} 29. Kh1 {[%emt 0:00:04]} Ng4 {[%emt 0:02:40]} 30. hxg4 {[%emt 0:00:04]} Qh4+ {[%emt 0:00:08]} 31. Kg1 {[%emt 0:00:05]} Qg3 {[%emt 0:00:05]} 32. Qxg5 {[%emt 0:01:50]} hxg5 {[%emt 0:00:07]} 33. Ne4 {[%emt 0:00:15]} Qb3 {[%emt 0:01:16]} 34. cxb8=Q {[%emt 0:00:08]} Rxb8 {[%emt 0:00:05]} 35. d6 {[%emt 0:01:04]} Kg7 {[%emt 0:00:34]} 36. d7 {[%emt 0:00:52]} f5 {[%emt 0:02:28]} 37. Nc5 {[%emt 0:00:40]} Qc3 {[%emt 0:01:33]} 38. Rad1 {[%emt 0:01:17]} e4 {[%emt 0:01:33]} 39. Bxa6 {[%emt 0:02:25]} Qg3 {[%emt 0:01:30]} 40. Bc8 {[%emt 0:00:32]} e3 {[%emt 0:00:26]} 41. Re2 {[%emt 0:00:32]} 1-0

[Event "Chigorin Memorial 2019"]
[Site "Saint Petersburg"]
[Date "2019.10.11"]
[Round "7.1"]
[White "Ter-Sahakyan, Samvel"]
[Black "Bocharov, Ivan"]
[Result "1/2-1/2"]
[ECO "B96"]
[WhiteElo "2616"]
[BlackElo "2550"]
[Annotator "RC"]
[PlyCount "195"]
[EventDate "2019.10.05"]
[EventType "swiss"]
[EventCountry "RUS"]
[SourceTitle "playchess.com"]
[Source "ChessBase"]
[SourceQuality "1"]
[TimeControl "5400+30"]

1. e4 {[%emt 0:00:00]} c5 {[%emt 0:00:00]} 2. Nf3 {[%emt 0:00:00]} d6 {[%emt 0:00:00]} 3. d4 {[%emt 0:00:00]} cxd4 {[%emt 0:00:00]} 4. Nxd4 {[%emt 0:00:05]} Nf6 {[%emt 0:00:00]} 5. Nc3 {[%emt 0:00:16]} a6 {[%emt 0:00:00]} 6. Bg5 {[%emt 0:02:59]} e6 {[%emt 0:00:00]} 7. f4 {[%emt 0:00:12]} h6 {[%emt 0:00:15]} 8. Bh4 {[%emt 0:00:05]} Qb6 {[%emt 0:00:09]} 9. a3 {[%emt 0:00:44]} Be7 {[%emt 0:00:28]} 10. Bf2 {[%emt 0:00:19]} Qc7 {[%emt 0:00:11]} 11. Qf3 {[%emt 0:02:03]} Nbd7 {[%emt 0:00:16]} 12. O-O-O {[%emt 0:00:14]} b5 {[%emt 0:00:20]} 13. g4 {[%emt 0:00:06]} Bb7 {[%emt 0:00:11]} 14. h4 {[%emt 0:01:17]} Nc5 {[%emt 0:02:56]} 15. Bd3 {[%emt 0:00:07]} d5 {[%emt 0:00:30]} 16. e5 {[%emt 0:02:46]} Nfe4 {[%emt 0:00:04]} 17. Be1 {[%emt 0:04:09]} Nxd3+ {[%emt 0:03:14]} 18. Rxd3 {[%emt 0:05:07]} O-O-O {[%emt 0:01:01]} 19. Nce2 {[%emt 0:22:18]} Kb8 {[%emt 0:05:15]} 20. g5 {[%emt 0:17:08]} hxg5 {[%emt 0:04:53]} 21. hxg5 {[%emt 0:00:08]} g6 {[%emt 0:00:35]} 22. Qg2 {[%emt 0:03:37]} Rxh1 {[%emt 0:04:13]} 23. Qxh1 {[%emt 0:00:58]} Rc8 {[%emt 0:00:00]} 24. Rh3 {[%emt 0:07:36]} Bc5 {[%emt 0:01:37]} 25. Rh8 {[%emt 0:03:16]} Rxh8 {[%emt 0:18:31]} 26. Qxh8+ {[%emt 0:00:52]} Ka7 {[%emt 0:00:01]} 27. Qh3 {[%emt 0:01:05]} Qb6 {[%emt 0:02:45]} 28. Qd3 {[%emt 0:01:04]} Qd8 {[%emt 0:09:10]} 29. Qh3 {[%emt 0:05:59]} Qb6 {[%emt 0:00:02]} 30. Qe3 {[%emt 0:00:57]} a5 {[%emt 0:08:05]} 31. b4 {[%emt 0:01:40]} axb4 {[%emt 0:00:20]} 32. Bxb4 {[%emt 0:01:11]} Kb8 {[%emt 0:02:28]} 33. Bxc5 {[%emt 0:04:29]} Qxc5 {[%emt 0:01:51]} 34. Qb3 {[%emt 0:00:05]} Ba6 {[%emt 0:01:19]} 35. Qb4 {[%emt 0:00:11]} Kc7 {[%emt 0:07:19]} 36. Kb2 {[%emt 0:01:07]} Kb6 {[%emt 0:03:07]} 37. Nb3 {[%emt 0:01:36]} Qc4 {[%emt 0:05:38]} 38. Ned4 {[%emt 0:01:58]} Qxb4 {[%emt 0:04:54]} 39. axb4 {[%emt 0:00:04]} Ng3 {[%emt 0:00:16]} 40. Nc1 {[%emt 0:00:49]} Bc8 {[%emt 0:01:30]} 41. Nce2 {[%emt 0:00:21]} Nh5 {[%emt 0:00:01]} 42. Kc3 {[%emt 0:02:32]} Bd7 {[%emt 0:02:34]} 43. Kd3 {[%emt 0:00:09]} Ng7 {[%emt 0:00:34]} 44. Ng3 {[%emt 0:00:19]} Ne8 {[%emt 0:00:27]} 45. Nf1 {[%emt 0:00:38]} Nc7 {[%emt 0:00:56]} 46. Ne3 {[%emt 0:00:10]} Na6 {[%emt 0:01:01]} 47. c3 {[%emt 0:01:11]} Kc7 {[%emt 0:00:59]} 48. Ng4 {[%emt 0:00:26]} Kd8 {[%emt 0:01:16]} 49. Nf6 {[%emt 0:00:13]} Nc7 {[%emt 0:00:01]} 50. Nb3 {[%emt 0:00:26]} Bc6 {[%emt 0:00:23]} 51. Kd4 {[%emt 0:02:39]} Na6 {[%emt 0:00:00]} 52. Ng4 {[%emt 0:00:17]} Ke7 {[%emt 0:00:51]} 53. Ne3 {[%emt 0:01:40]} Kd8 {[%emt 0:00:06]} 54. Na5 {[%emt 0:00:19]} Ba8 {[%emt 0:01:00]} 55. Nb3 {[%emt 0:01:34]} Ke7 {[%emt 0:01:33]} 56. Nc2 {[%emt 0:00:37]} Kd8 {[%emt 0:00:14]} 57. Nc5 {[%emt 0:00:41]} Nb8 {[%emt 0:00:50]} 58. Kd3 {[%emt 0:00:33]} Bc6 {[%emt 0:00:59]} 59. Nd4 {[%emt 0:00:22]} Kc8 {[%emt 0:01:42]} 60. Ke3 {[%emt 0:00:43]} Be8 {[%emt 0:01:15]} 61. Nd3 {[%emt 0:00:54]} Kc7 {[%emt 0:01:28]} 62. Nf2 {[%emt 0:00:11]} Kd8 {[%emt 0:01:22]} 63. Ng4 {[%emt 0:00:13]} Bc6 {[%emt 0:01:12]} 64. Nf6 {[%emt 0:01:46]} Ke7 {[%emt 0:00:01]} 65. Ng4 {[%emt 0:01:21]} Kd8 {[%emt 0:00:01]} 66. Kd3 {[%emt 0:00:07]} Be8 {[%emt 0:00:30]} 67. Nb3 {[%emt 0:00:35]} Bc6 {[%emt 0:00:37]} 68. Na5 {[%emt 0:00:35]} Ba8 {[%emt 0:00:03]} 69. Ne3 {[%emt 0:00:30]} Na6 {[%emt 0:01:18]} 70. Nc2 {[%emt 0:01:01]} Kc7 {[%emt 0:01:37]} 71. Nd4 {[%emt 0:02:04]} Kb6 {[%emt 0:00:01]} 72. Nab3 {[%emt 0:00:37]} Bc6 {[%emt 0:00:48]} 73. Nc1 {[%emt 0:00:14]} Nb8 {[%emt 0:00:56]} 74. Ke3 {[%emt 0:00:08]} Kc7 {[%emt 0:02:06]} 75. Nd3 {[%emt 0:00:29]} Be8 {[%emt 0:00:39]} 76. Nc5 {[%emt 0:00:27]} Kc8 {[%emt 0:00:01]} 77. Kd2 {[%emt 0:00:49]} Kc7 {[%emt 0:00:17]} 78. Kd3 {[%emt 0:00:03]} Kc8 {[%emt 0:00:07]} 79. Ndb3 {[%emt 0:00:21]} Bc6 {[%emt 0:00:27]} 80. Na5 {[%emt 0:00:45]} Kc7 {[%emt 0:00:14]} 81. Kd4 {[%emt 0:00:07]} Kb6 {[%emt 0:00:56]} 82. Nd3 {[%emt 0:01:11]} Be8 {[%emt 0:01:25]} 83. Nf2 {[%emt 0:00:05]} Bd7 {[%emt 0:00:17]} 84. Ng4 {[%emt 0:00:13]} Be8 {[%emt 0:01:02]} 85. Nf6 {[%emt 0:00:52]} Bd7 {[%emt 0:00:01]} 86. Nb3 {[%emt 0:00:50]} Bc6 {[%emt 0:01:23]} 87. Nc1 {[%emt 0:00:57]} Kc7 {[%emt 0:00:48]} 88. Nd3 {[%emt 0:00:44]} Kd8 {[%emt 0:00:49]} 89. Nf2 {[%emt 0:00:39]} Na6 {[%emt 0:00:08]} 90. Nd3 {[%emt 0:01:03]} Ke7 {[%emt 0:00:08]} 91. Nc5 {[%emt 0:00:09]} Nc7 {[%emt 0:00:15]} 92. Nb3 {[%emt 0:00:16]} Na6 {[%emt 0:00:06]} 93. Ke3 {[%emt 0:00:18]} Nc7 {[%emt 0:00:10]} 94. Nc5 {[%emt 0:00:29]} Kd8 {[%emt 0:00:19]} 95. Kd4 {[%emt 0:00:23]} Ke7 {[%emt 0:00:08]} 96. Ng4 {[%emt 0:00:07]} Kd8 {[%emt 0:00:10]} 97. Ne3 {[%emt 0:00:06]} Ke7 {[%emt 0:00:04]} 98. Nc2 {[%emt 0:00:06]} 1/2-1/2

[Event "Chigorin Memorial 2019"]
[Site "Saint Petersburg"]
[Date "2019.10.11"]
[Round "7.4"]
[White "Petrosyan, Manuel"]
[Black "Vorobiov, Evgeny E."]
[Result "1-0"]
[ECO "A36"]
[WhiteElo "2611"]
[BlackElo "2555"]
[Annotator "RC"]
[PlyCount "39"]
[EventDate "2019.10.05"]
[EventType "swiss"]
[EventCountry "RUS"]
[SourceTitle "playchess.com"]
[Source "ChessBase"]
[SourceQuality "1"]
[TimeControl "5400+30"]

1. c4 {[%emt 0:03:15]} c5 {[%emt 0:00:00]} 2. Nc3 {[%emt 0:00:05]} g6 {[%emt 0:00:36]} 3. g3 {[%emt 0:00:25]} Bg7 {[%emt 0:00:06]} 4. Bg2 {[%emt 0:00:05]} Nc6 {[%emt 0:00:05]} 5. d3 {[%emt 0:00:06]} e6 {[%emt 0:03:31]} 6. h4 {[%emt 0:00:18]} Nge7 {[%emt 0:05:14]} 7. h5 {[%emt 0:02:04]} d5 {[%emt 0:00:31]} 8. Bg5 {[%emt 0:05:54]} dxc4 {[%emt 0:27:06]} 9. Bxc6+ {[%emt 0:12:40]} bxc6 {[%emt 0:00:10]} 10. dxc4 {[%emt 0:00:06]} Bxc3+ {[%emt 0:15:08]} 11. bxc3 {[%emt 0:00:08]} Qxd1+ {[%emt 0:00:26]} 12. Rxd1 {[%emt 0:00:16]} Ba6 {[%emt 0:00:06]} 13. Nf3 {[%emt 0:00:32]} gxh5 {[%emt 0:07:40]} 14. Rxh5 {[%emt 0:03:21]} Bxc4 {[%emt 0:02:05]} 15. Nd2 {[%emt 0:07:41]} Ba6 {[%emt 0:09:57]} 16. Ne4 {[%emt 0:00:42]} h6 {[%emt 0:06:02]} 17. Nf6+ {[%emt 0:07:08]} Kf8 {[%emt 0:00:12]} 18. Rxh6 {[%emt 0:00:14]} Ng6 {[%emt 0:01:40]} 19. Rd7 {[%emt 0:00:21]} Kg7 {[%emt 0:01:11]} 20. Nh5+ {[%emt 0:00:06]} 1-0

[Event "Chigorin Memorial 2019"]
[Site "Saint Petersburg"]
[Date "2019.10.11"]
[Round "7.5"]
[White "Vokhidov, Shamsiddin"]
[Black "Kryakvin, Dmitry"]
[Result "1/2-1/2"]
[ECO "C09"]
[WhiteElo "2519"]
[BlackElo "2608"]
[Annotator "ChessBase"]
[PlyCount "81"]
[EventDate "2019.10.05"]
[EventType "swiss"]
[EventCountry "RUS"]
[SourceTitle "playchess.com"]
[Source "ChessBase"]
[SourceQuality "1"]
[TimeControl "5400+30"]

1. e4 {[%emt 0:00:00]} e6 {[%emt 0:01:14]} 2. d4 {[%emt 0:00:00]} d5 {[%emt 0:00:06]} 3. Nd2 {[%emt 0:00:00]} c5 {[%emt 0:00:10]} 4. Ngf3 {[%emt 0:00:00]} Nc6 {[%emt 0:00:06]} 5. exd5 {[%emt 0:00:08]} exd5 {[%emt 0:00:06]} 6. Bb5 {[%emt 0:00:06]} Qe7+ {[%emt 0:00:07]} 7. Be2 {[%emt 0:00:50]} Qc7 {[%emt 0:00:13]} 8. dxc5 {[%emt 0:04:10]} Bxc5 {[%emt 0:00:22]} 9. Nb3 {[%emt 0:00:03]} Be7 {[%emt 0:00:51]} 10. O-O {[%emt 0:01:44]} Nf6 {[%emt 0:00:23]} 11. c3 {[%emt 0:02:41]} O-O {[%emt 0:01:09]} 12. Bg5 {[%emt 0:00:05]} Rd8 {[%emt 0:04:56]} 13. Re1 {[%emt 0:07:06]} Bf5 {[%emt 0:07:22]} 14. Nfd4 {[%emt 0:04:33]} Bg6 {[%emt 0:00:47]} 15. Bh4 {[%emt 0:02:54]} Ne4 {[%emt 0:01:06]} 16. Bxe7 {[%emt 0:01:22]} Nxe7 {[%emt 0:00:33]} 17. Bd3 {[%emt 0:04:22]} Nc6 {[%emt 0:02:47]} 18. f3 {[%emt 0:15:24]} Nd6 {[%emt 0:00:26]} 19. Bf1 {[%emt 0:02:01]} Qb6 {[%emt 0:05:15]} 20. Qd2 {[%emt 0:01:34]} a5 {[%emt 0:14:04]} 21. Qf2 {[%emt 0:01:28]} a4 {[%emt 0:00:31]} 22. Nxc6 {[%emt 0:00:06]} Qxf2+ {[%emt 0:00:07]} 23. Kxf2 {[%emt 0:00:02]} bxc6 {[%emt 0:00:09]} 24. Nc5 {[%emt 0:02:43]} Ra5 {[%emt 0:08:05]} 25. Nd3 {[%emt 0:00:15]} Bxd3 {[%emt 0:06:06]} 26. Bxd3 {[%emt 0:00:59]} Kf8 {[%emt 0:00:07]} 27. b4 {[%emt 0:09:49]} axb3 {[%emt 0:01:39]} 28. axb3 {[%emt 0:00:40]} Rda8 {[%emt 0:00:10]} 29. Rxa5 {[%emt 0:00:06]} Rxa5 {[%emt 0:00:07]} 30. Ke3 {[%emt 0:00:23]} Ra3 {[%emt 0:02:47]} 31. Bc2 {[%emt 0:00:25]} Nb5 {[%emt 0:06:42]} 32. Kd3 {[%emt 0:00:05]} c5 {[%emt 0:03:05]} 33. Re5 {[%emt 0:03:41]} c4+ {[%emt 0:02:15]} 34. bxc4 {[%emt 0:00:04]} Rxc3+ {[%emt 0:01:49]} 35. Kd2 {[%emt 0:00:04]} Rxc4 {[%emt 0:00:08]} 36. Rxd5 {[%emt 0:00:04]} Rd4+ {[%emt 0:00:11]} 37. Rxd4 {[%emt 0:00:05]} Nxd4 {[%emt 0:00:04]} 38. Bd3 {[%emt 0:00:04]} g6 {[%emt 0:00:08]} 39. Ke3 {[%emt 0:00:04]} Ne6 {[%emt 0:00:04]} 40. g4 {[%emt 0:00:08]} Kg7 {[%emt 0:00:08]} 41. Ke4 {[%emt 0:40:12]} 1/2-1/2